[Event "Panevezys Elite Open 2020"]
[Site "Panevezys"]
[Date "2020.07.01"]
[Round "7.10"]
[White "Dambrauskas, Virginijus"]
[Black "Boyajyan, David"]
[Result "1-0"]
[ECO "E00"]
[WhiteElo "2246"]
[BlackElo "1949"]
[Annotator "ChessBase"]
[PlyCount "103"]
[EventDate "2020.06.26"]
[EventType "swiss"]
[EventCountry "LTU"]
[SourceTitle "playchess.com"]
[Source "ChessBase"]
[SourceQuality "1"]
[TimeControl "40/5400+30:1800+30"]

1. d4 {[%emt 0:00:00]} e6 {[%emt 0:00:00]} 2. c4 {[%emt 0:00:00]} Bb4+ {[%emt 0:00:00]} 3. Nd2 {[%emt 0:00:08]} c5 {[%emt 0:00:00]} 4. a3 {[%emt 0:01:17]} Bxd2+ {[%emt 0:00:25]} 5. Qxd2 {[%emt 0:00:12]} cxd4 {[%emt 0:00:09]} 6. Qxd4 {[%emt 0:01:12]} Nf6 {[%emt 0:00:22]} 7. Nf3 {[%emt 0:10:28]} Nc6 {[%emt 0:00:14]} 8. Qd3 {[%emt 0:05:14]} d5 {[%emt 0:02:59]} 9. Bg5 {[%emt 0:01:52]} dxc4 {[%emt 0:05:57]} 10. Qxc4 {[%emt 0:00:51]} Qa5+ {[%emt 0:10:49]} 11. b4 {[%emt 0:09:12]} Qa4 {[%emt 0:01:32]} 12. e4 {[%emt 0:06:34]} Bd7 {[%emt 0:08:55]} 13. Bd3 {[%emt 0:03:13]} Rc8 {[%emt 0:07:56]} 14. Bc2 {[%emt 0:04:29]} b5 {[%emt 0:00:01]} 15. Qc3 {[%emt 0:00:45]} Qa6 {[%emt 0:01:20]} 16. Bxf6 {[%emt 0:00:19]} gxf6 {[%emt 0:10:45]} 17. Qxf6 {[%emt 0:00:27]} Rg8 {[%emt 0:00:28]} 18. O-O {[%emt 0:05:28]} Rg6 {[%emt 0:01:21]} 19. Qf4 {[%emt 0:02:08]} e5 {[%emt 0:01:39]} 20. Nxe5 {[%emt 0:00:37]} Nxe5 {[%emt 0:00:15]} 21. Qxe5+ {[%emt 0:00:11]} Qe6 {[%emt 0:00:34]} 22. Qxe6+ {[%emt 0:07:35]} Bxe6 {[%emt 0:00:04]} 23. Rfc1 {[%emt 0:12:52]} Bh3 {[%emt 0:00:54]} 24. Bd3 {[%emt 0:02:40]} Rxc1+ {[%emt 0:08:29]} 25. Rxc1 {[%emt 0:00:08]} Rxg2+ {[%emt 0:00:03]} 26. Kf1 {[%emt 0:00:26]} Rxh2+ {[%emt 0:00:51]} 27. Ke2 {[%emt 0:00:18]} Bg4+ {[%emt 0:00:38]} 28. Ke3 {[%emt 0:00:34]} Rh3+ {[%emt 0:00:36]} 29. Kd4 {[%emt 0:00:22]} Bd7 {[%emt 0:02:30]} 30. Rc7 {[%emt 0:02:57]} Rf3 {[%emt 0:00:48]} 31. Rxa7 {[%emt 0:00:22]} Rxf2 {[%emt 0:01:07]} 32. Kc5 {[%emt 0:01:33]} Rg2 {[%emt 0:02:42]} 33. e5 {[%emt 0:00:53]} Rh2 {[%emt 0:02:14]} 34. Bxb5 {[%emt 0:01:54]} Bxb5 {[%emt 0:00:06]} 35. Kxb5 {[%emt 0:00:05]} Rh5 {[%emt 0:00:20]} 36. Kc6 {[%emt 0:00:39]} Rxe5 {[%emt 0:00:26]} 37. b5 {[%emt 0:00:16]} Re1 {[%emt 0:01:19]} 38. b6 {[%emt 0:00:34]} Rc1+ {[%emt 0:00:21]} 39. Kb5 {[%emt 0:01:16]} Rb1+ {[%emt 0:01:13]} 40. Ka5 {[%emt 0:00:42]} Kf8 {[%emt 0:02:29]} 41. b7 {[%emt 0:30:49]} Kg7 {[%emt 0:30:08]} 42. Ka6 {[%emt 0:00:12]} Ra1 {[%emt 0:01:18]} 43. Kb6 {[%emt 0:01:00]} Rb1+ {[%emt 0:00:06]} 44. Kc6 {[%emt 0:04:39]} Rc1+ {[%emt 0:01:55]} 45. Kd5 {[%emt 0:00:09]} Rb1 {[%emt 0:00:08]} 46. Ke4 {[%emt 0:00:39]} Kf6 {[%emt 0:00:29]} 47. a4 {[%emt 0:00:14]} Ke6 {[%emt 0:00:17]} 48. a5 {[%emt 0:00:12]} f5+ {[%emt 0:01:14]} 49. Kd4 {[%emt 0:00:37]} f4 {[%emt 0:00:24]} 50. Ra6+ {[%emt 0:00:35]} Kf5 {[%emt 0:00:57]} 51. Rb6 {[%emt 0:00:10]} Rd1+ {[%emt 0:00:02]} 52. Kc3 {[%emt 0:00:12]} 1-0

[Event "Panevezys Elite Open 2020"]
[Site "Panevezys"]
[Date "2020.07.01"]
[Round "7.11"]
[White "Steponavicius, Stasys"]
[Black "Bagvilas, Lukas"]
[Result "1-0"]
[ECO "A41"]
[WhiteElo "2183"]
[BlackElo "1907"]
[Annotator "ChessBase"]
[PlyCount "121"]
[EventDate "2020.06.26"]
[EventType "swiss"]
[EventCountry "LTU"]
[SourceTitle "playchess.com"]
[Source "ChessBase"]
[SourceQuality "1"]
[TimeControl "40/5400+30:1800+30"]

1. d4 {[%emt 0:00:00]} d6 {[%emt 0:00:00]} 2. c4 {[%emt 0:00:05]} f5 {[%emt 0:00:00]} 3. Nf3 {[%emt 0:00:42]} Nf6 {[%emt 0:00:00]} 4. g3 {[%emt 0:00:12]} g6 {[%emt 0:00:00]} 5. Bg2 {[%emt 0:00:07]} Bg7 {[%emt 0:00:05]} 6. O-O {[%emt 0:00:14]} O-O {[%emt 0:00:05]} 7. b3 {[%emt 0:00:22]} c6 {[%emt 0:00:05]} 8. Bb2 {[%emt 0:00:06]} Qc7 {[%emt 0:00:07]} 9. Nbd2 {[%emt 0:00:34]} Nbd7 {[%emt 0:01:10]} 10. Qc2 {[%emt 0:01:22]} e5 {[%emt 0:02:34]} 11. e4 {[%emt 0:02:03]} Nh5 {[%emt 0:04:20]} 12. exf5 {[%emt 0:01:38]} gxf5 {[%emt 0:00:09]} 13. Ng5 {[%emt 0:02:29]} Ndf6 {[%emt 0:02:02]} 14. dxe5 {[%emt 0:02:20]} dxe5 {[%emt 0:00:16]} 15. Rfe1 {[%emt 0:01:36]} e4 {[%emt 0:00:24]} 16. Nf1 {[%emt 0:05:26]} h6 {[%emt 0:01:14]} 17. Nh3 {[%emt 0:00:13]} f4 {[%emt 0:17:46]} 18. Nxf4 {[%emt 0:00:29]} Nxf4 {[%emt 0:00:28]} 19. gxf4 {[%emt 0:00:07]} Qxf4 {[%emt 0:00:31]} 20. Ng3 {[%emt 0:02:24]} Bf5 {[%emt 0:03:37]} 21. Nxf5 {[%emt 0:11:56]} Qxf5 {[%emt 0:00:08]} 22. f3 {[%emt 0:03:18]} Qh5 {[%emt 0:03:18]} 23. Qe2 {[%emt 0:03:21]} exf3 {[%emt 0:02:19]} 24. Bxf3 {[%emt 0:00:30]} Qc5+ {[%emt 0:00:09]} 25. Kh1 {[%emt 0:00:29]} Rae8 {[%emt 0:00:11]} 26. Qg2 {[%emt 0:00:23]} Rxe1+ {[%emt 0:00:57]} 27. Rxe1 {[%emt 0:00:06]} Qg5 {[%emt 0:00:45]} 28. Qxg5 {[%emt 0:02:33]} hxg5 {[%emt 0:00:09]} 29. Ba3 {[%emt 0:03:35]} Re8 {[%emt 0:02:07]} 30. Rxe8+ {[%emt 0:00:17]} Nxe8 {[%emt 0:00:09]} 31. Bc5 {[%emt 0:00:20]} a6 {[%emt 0:07:40]} 32. Bg4 {[%emt 0:00:51]} Bf8 {[%emt 0:00:11]} 33. Be3 {[%emt 0:00:45]} Be7 {[%emt 0:00:33]} 34. c5 {[%emt 0:00:37]} Nc7 {[%emt 0:00:20]} 35. Bc8 {[%emt 0:00:41]} Nd5 {[%emt 0:00:09]} 36. Bf2 {[%emt 0:01:41]} Kf7 {[%emt 0:01:35]} 37. a3 {[%emt 0:03:35]} Nc3 {[%emt 0:00:30]} 38. b4 {[%emt 0:02:12]} Nb5 {[%emt 0:14:04]} 39. Bxb7 {[%emt 0:07:31]} Nxa3 {[%emt 0:00:16]} 40. Bxc6 {[%emt 0:00:16]} Nc2 {[%emt 0:00:22]} 41. Be4 {[%emt 0:30:28]} Nxb4 {[%emt 0:30:29]} 42. c6 {[%emt 0:00:27]} Nxc6 {[%emt 0:00:09]} 43. Bxc6 {[%emt 0:00:07]} a5 {[%emt 0:00:14]} 44. Kg2 {[%emt 0:00:33]} Kg7 {[%emt 0:00:48]} 45. Kf3 {[%emt 0:00:12]} Bd6 {[%emt 0:04:34]} 46. h3 {[%emt 0:00:50]} a4 {[%emt 0:02:21]} 47. Bxa4 {[%emt 0:00:08]} Be5 {[%emt 0:04:29]} 48. Kg4 {[%emt 0:00:12]} Bf6 {[%emt 0:00:07]} 49. Kf5 {[%emt 0:00:17]} Bd8 {[%emt 0:03:08]} 50. Bd4+ {[%emt 0:00:12]} Kh6 {[%emt 0:00:08]} 51. Be8 {[%emt 0:00:33]} Kh7 {[%emt 0:00:18]} 52. Ke6 {[%emt 0:01:38]} Kg8 {[%emt 0:00:54]} 53. Bg6 {[%emt 0:01:44]} Ba5 {[%emt 0:00:34]} 54. Kf5 {[%emt 0:00:38]} Bd2 {[%emt 0:00:06]} 55. Kg4 {[%emt 0:00:21]} Bc1 {[%emt 0:01:52]} 56. Kh5 {[%emt 0:00:06]} Kf8 {[%emt 0:02:05]} 57. Bd3 {[%emt 0:00:13]} Kf7 {[%emt 0:00:20]} 58. Bc4+ {[%emt 0:00:09]} Ke7 {[%emt 0:00:09]} 59. Kg6 {[%emt 0:00:09]} Bd2 {[%emt 0:00:17]} 60. Bg7 {[%emt 0:00:24]} Ke8 {[%emt 0:01:27]} 61. Bh6 {[%emt 0:00:56]} 1-0

[Event "Panevezys Elite Open 2020"]
[Site "Panevezys"]
[Date "2020.07.02"]
[Round "8.4"]
[White "Juksta, Karolis"]
[Black "Baum, Jonasz"]
[Result "1-0"]
[ECO "E20"]
[WhiteElo "2366"]
[BlackElo "2373"]
[Annotator "ChessBase"]
[PlyCount "127"]
[EventDate "2020.06.26"]
[EventType "swiss"]
[EventCountry "LTU"]
[SourceTitle "playchess.com"]
[Source "ChessBase"]
[SourceQuality "1"]
[TimeControl "40/5400+30:1800+30"]

1. d4 {[%emt 0:00:00]} Nf6 {[%emt 0:00:00]} 2. c4 {[%emt 0:00:00]} e6 {[%emt 0:00:00]} 3. Nc3 {[%emt 0:00:00]} Bb4 {[%emt 0:00:00]} 4. f3 {[%emt 0:01:27]} c5 {[%emt 0:00:09]} 5. d5 {[%emt 0:00:50]} O-O {[%emt 0:00:13]} 6. e4 {[%emt 0:00:15]} d6 {[%emt 0:00:18]} 7. Nge2 {[%emt 0:00:40]} a6 {[%emt 0:00:18]} 8. Ng3 {[%emt 0:04:05]} b5 {[%emt 0:00:40]} 9. Be2 {[%emt 0:11:41]} bxc4 {[%emt 0:00:42]} 10. Bxc4 {[%emt 0:02:10]} exd5 {[%emt 0:01:51]} 11. Bxd5 {[%emt 0:00:41]} Nxd5 {[%emt 0:00:10]} 12. Qxd5 {[%emt 0:00:06]} Ra7 {[%emt 0:14:07]} 13. O-O {[%emt 0:02:08]} Bxc3 {[%emt 0:02:46]} 14. bxc3 {[%emt 0:00:08]} Be6 {[%emt 0:00:08]} 15. Qd3 {[%emt 0:07:03]} Nc6 {[%emt 0:14:43]} 16. f4 {[%emt 0:00:44]} Rd7 {[%emt 0:21:07]} 17. Be3 {[%emt 0:13:26]} Na5 {[%emt 0:02:33]} 18. Rf2 {[%emt 0:05:05]} f6 {[%emt 0:02:36]} 19. Nf1 {[%emt 0:17:14]} Nc4 {[%emt 0:18:29]} 20. Nd2 {[%emt 0:02:13]} Nxe3 {[%emt 0:00:12]} 21. Qxe3 {[%emt 0:00:06]} Qa5 {[%emt 0:00:26]} 22. Nf3 {[%emt 0:04:26]} Re8 {[%emt 0:08:27]} 23. Re1 {[%emt 0:05:31]} Bf7 {[%emt 0:07:52]} 24. Rd2 {[%emt 0:04:14]} Rde7 {[%emt 0:01:13]} 25. Rxd6 {[%emt 0:03:36]} Rxe4 {[%emt 0:01:31]} 26. Qxe4 {[%emt 0:00:27]} Rxe4 {[%emt 0:00:02]} 27. Rxe4 {[%emt 0:00:01]} Qc7 {[%emt 0:02:14]} 28. Rd2 {[%emt 0:05:06]} Bg6 {[%emt 0:00:26]} 29. Re3 {[%emt 0:00:01]} h5 {[%emt 0:00:43]} 30. Nh4 {[%emt 0:01:23]} Bf7 {[%emt 0:00:30]} 31. g3 {[%emt 0:01:52]} g6 {[%emt 0:00:32]} 32. Kf2 {[%emt 0:02:15]} c4 {[%emt 0:00:20]} 33. Nf3 {[%emt 0:00:56]} Qb6 {[%emt 0:00:40]} 34. Rd7 {[%emt 0:02:02]} Be6 {[%emt 0:00:19]} 35. Re7 {[%emt 0:01:21]} Bd5 {[%emt 0:00:36]} 36. Nd4 {[%emt 0:00:34]} Bf7 {[%emt 0:00:35]} 37. Rd7 {[%emt 0:00:10]} Qb2+ {[%emt 0:00:26]} 38. Ne2 {[%emt 0:02:24]} Qb6 {[%emt 0:00:01]} 39. Nd4 {[%emt 0:01:03]} Qb2+ {[%emt 0:00:01]} 40. Ne2 {[%emt 0:00:41]} Qb6 {[%emt 0:00:01]} 41. h3 {[%emt 0:10:53]} Kf8 {[%emt 0:11:08]} 42. Nd4 {[%emt 0:03:47]} Qb2+ {[%emt 0:00:49]} 43. Ne2 {[%emt 0:01:59]} Qb6 {[%emt 0:00:48]} 44. Rd4 {[%emt 0:01:50]} Qb7 {[%emt 0:08:27]} 45. Rd6 {[%emt 0:04:00]} Kg7 {[%emt 0:02:21]} 46. h4 {[%emt 0:00:35]} Bd5 {[%emt 0:04:20]} 47. Re8 {[%emt 0:03:15]} Kf7 {[%emt 0:01:23]} 48. Red8 {[%emt 0:02:51]} Be6 {[%emt 0:01:46]} 49. Rd2 {[%emt 0:02:54]} Qh1 {[%emt 0:00:45]} 50. Rh8 {[%emt 0:03:07]} Bd5 {[%emt 0:02:35]} 51. Rh7+ {[%emt 0:01:19]} Ke6 {[%emt 0:01:03]} 52. f5+ {[%emt 0:00:35]} Kxf5 {[%emt 0:00:32]} 53. Rd4 {[%emt 0:00:26]} g5 {[%emt 0:02:02]} 54. hxg5 {[%emt 0:00:38]} Kxg5 {[%emt 0:00:32]} 55. Rxd5+ {[%emt 0:00:14]} f5 {[%emt 0:00:23]} 56. Rd6 {[%emt 0:00:31]} Qh2+ {[%emt 0:00:17]} 57. Ke3 {[%emt 0:00:14]} f4+ {[%emt 0:00:28]} 58. gxf4+ {[%emt 0:00:10]} Kg4 {[%emt 0:00:47]} 59. Rg6+ {[%emt 0:00:30]} Kh4 60. Rg5 {[%emt 0:00:28]} Qh3+ {[%emt 0:00:30]} 61. Ng3 {[%emt 0:00:06]} Qe6+ {[%emt 0:00:14]} 62. Ne4 {[%emt 0:00:38]} Qh3+ {[%emt 0:00:13]} 63. Kd4 {[%emt 0:00:40]} Qd3+ {[%emt 0:00:06]} 64. Ke5 {[%emt 0:00:04]} 1-0

[Event "Panevezys Elite Open 2020"]
[Site "Panevezys"]
[Date "2020.07.02"]
[Round "8.6"]
[White "Brazdzionis, Andrius"]
[Black "Krivonosov, Oleg"]
[Result "1/2-1/2"]
[ECO "E07"]
[WhiteElo "2342"]
[BlackElo "2391"]
[Annotator "ChessBase"]
[PlyCount "84"]
[EventDate "2020.06.26"]
[EventType "swiss"]
[EventCountry "LTU"]
[SourceTitle "playchess.com"]
[Source "ChessBase"]
[SourceQuality "1"]
[TimeControl "40/5400+30:1800+30"]

1. Nf3 {[%emt 0:00:00]} Nf6 {[%emt 0:00:00]} 2. c4 {[%emt 0:00:00]} e6 {[%emt 0:00:04]} 3. g3 {[%emt 0:00:00]} d5 {[%emt 0:00:11]} 4. Bg2 {[%emt 0:00:00]} Be7 {[%emt 0:00:29]} 5. O-O {[%emt 0:00:03]} O-O {[%emt 0:00:03]} 6. d4 {[%emt 0:00:04]} Nbd7 {[%emt 0:00:30]} 7. Nc3 {[%emt 0:00:08]} dxc4 {[%emt 0:00:07]} 8. e4 {[%emt 0:01:39]} b5 {[%emt 0:00:45]} 9. Nxb5 {[%emt 0:08:03]} Bb7 {[%emt 0:00:26]} 10. e5 {[%emt 0:01:50]} Nd5 {[%emt 0:00:35]} 11. Qe2 {[%emt 0:01:25]} N7b6 {[%emt 0:21:43]} 12. Rd1 {[%emt 0:09:22]} Qd7 {[%emt 0:05:20]} 13. Nc3 {[%emt 0:02:28]} Nxc3 {[%emt 0:01:10]} 14. bxc3 {[%emt 0:00:07]} h6 {[%emt 0:02:05]} 15. h4 {[%emt 0:06:15]} Bd5 {[%emt 0:01:25]} 16. Nh2 {[%emt 0:04:44]} Bxg2 {[%emt 0:02:14]} 17. Kxg2 {[%emt 0:00:11]} Qc6+ {[%emt 0:01:08]} 18. Kg1 {[%emt 0:02:57]} Nd5 {[%emt 0:04:17]} 19. Bd2 {[%emt 0:05:58]} Rfb8 {[%emt 0:05:34]} 20. Qg4 {[%emt 0:03:28]} Kh8 {[%emt 0:07:51]} 21. Qf3 {[%emt 0:03:23]} Qe8 {[%emt 0:01:45]} 22. Ng4 {[%emt 0:00:53]} Rb2 {[%emt 0:02:33]} 23. Ne3 {[%emt 0:07:12]} Nxe3 {[%emt 0:00:42]} 24. Bxe3 {[%emt 0:00:18]} c6 {[%emt 0:01:51]} 25. Qe4 {[%emt 0:00:32]} Qd7 {[%emt 0:01:41]} 26. Bc1 {[%emt 0:08:45]} Rb5 {[%emt 0:01:39]} 27. Qf3 {[%emt 0:00:25]} Bf8 {[%emt 0:01:27]} 28. g4 {[%emt 0:03:48]} Kg8 {[%emt 0:08:46]} 29. g5 {[%emt 0:00:39]} Qd5 {[%emt 0:00:46]} 30. Qg4 {[%emt 0:03:50]} h5 {[%emt 0:01:59]} 31. Qxh5 {[%emt 0:00:40]} Qe4 {[%emt 0:00:17]} 32. Be3 {[%emt 0:01:55]} Rb2 {[%emt 0:02:22]} 33. Re1 {[%emt 0:01:32]} Rab8 {[%emt 0:04:18]} 34. Qd1 {[%emt 0:03:18]} Rc2 {[%emt 0:04:19]} 35. Rb1 {[%emt 0:05:18]} Rxb1 {[%emt 0:03:33]} 36. Qxb1 {[%emt 0:00:11]} Qg4+ {[%emt 0:00:16]} 37. Kf1 {[%emt 0:00:41]} Rxc3 {[%emt 0:00:55]} 38. Rc1 {[%emt 0:02:06]} Rd3 {[%emt 0:04:07]} 39. Qc2 {[%emt 0:00:39]} Qf3 {[%emt 0:02:28]} 40. Kg1 {[%emt 0:02:26]} Qg4+ {[%emt 0:01:45]} 41. Kf1 {[%emt 0:30:22]} Qf3 {[%emt 0:32:54]} 42. Kg1 {[%emt 0:00:09]} Qg4+ {[%emt 0:00:00]} 1/2-1/2

[Event "Panevezys Elite Open 2020"]
[Site "Panevezys"]
[Date "2020.07.02"]
[Round "8.9"]
[White "Dambrauskas, Virginijus"]
[Black "Chukavin, Kirill"]
[Result "0-1"]
[ECO "D30"]
[WhiteElo "2246"]
[BlackElo "2348"]
[Annotator "ChessBase"]
[PlyCount "86"]
[EventDate "2020.06.26"]
[EventType "swiss"]
[EventCountry "LTU"]
[SourceTitle "playchess.com"]
[Source "ChessBase"]
[SourceQuality "1"]
[TimeControl "40/5400+30:1800+30"]

1. d4 {[%emt 0:00:00]} Nf6 {[%emt 0:00:19]} 2. c4 {[%emt 0:00:00]} e6 {[%emt 0:00:19]} 3. Nf3 {[%emt 0:00:00]} d5 {[%emt 0:00:05]} 4. Bg5 {[%emt 0:00:41]} h6 {[%emt 0:00:34]} 5. Bxf6 {[%emt 0:00:48]} Qxf6 {[%emt 0:00:08]} 6. Nc3 {[%emt 0:00:08]} c6 {[%emt 0:00:07]} 7. e3 {[%emt 0:00:46]} g6 {[%emt 0:00:17]} 8. Be2 {[%emt 0:03:20]} dxc4 {[%emt 0:01:00]} 9. Bxc4 {[%emt 0:00:09]} Nd7 {[%emt 0:00:11]} 10. h4 {[%emt 0:02:52]} Bg7 {[%emt 0:04:25]} 11. h5 {[%emt 0:00:22]} g5 {[%emt 0:00:29]} 12. Qc2 {[%emt 0:01:51]} Qe7 {[%emt 0:08:32]} 13. a3 {[%emt 0:02:57]} O-O {[%emt 0:08:55]} 14. Ba2 {[%emt 0:00:53]} b6 {[%emt 0:13:36]} 15. O-O-O {[%emt 0:08:49]} Bb7 {[%emt 0:00:39]} 16. Bb1 {[%emt 0:00:58]} Rfd8 {[%emt 0:02:05]} 17. Ne5 {[%emt 0:14:26]} Nxe5 {[%emt 0:04:02]} 18. dxe5 {[%emt 0:00:11]} Qc5 {[%emt 0:00:47]} 19. Rxd8+ {[%emt 0:04:14]} Rxd8 {[%emt 0:00:12]} 20. Rd1 {[%emt 0:00:15]} Rxd1+ {[%emt 0:05:06]} 21. Qxd1 {[%emt 0:00:53]} Bxe5 {[%emt 0:06:34]} 22. Qd8+ {[%emt 0:01:36]} Kg7 {[%emt 0:16:51]} 23. Qd3 {[%emt 0:00:22]} Kf8 {[%emt 0:00:18]} 24. Qd8+ {[%emt 0:00:13]} Kg7 {[%emt 0:00:01]} 25. Qd3 {[%emt 0:00:08]} Qf8 {[%emt 0:01:45]} 26. Ne2 {[%emt 0:10:42]} Kf6 {[%emt 0:03:40]} 27. f4 {[%emt 0:01:13]} gxf4 {[%emt 0:00:37]} 28. exf4 {[%emt 0:00:08]} Qc5+ {[%emt 0:01:54]} 29. Bc2 {[%emt 0:00:19]} Bc7 {[%emt 0:00:42]} 30. Kb1 {[%emt 0:16:16]} Qd5 {[%emt 0:01:38]} 31. Qc3+ {[%emt 0:04:18]} Ke7 {[%emt 0:00:16]} 32. g4 {[%emt 0:00:28]} c5 {[%emt 0:01:29]} 33. Qg7 {[%emt 0:01:58]} Qh1+ {[%emt 0:02:35]} 34. Ka2 {[%emt 0:01:54]} Bd5+ {[%emt 0:00:10]} 35. b3 {[%emt 0:00:19]} Qg2 {[%emt 0:00:58]} 36. g5 {[%emt 0:05:36]} Qxe2 {[%emt 0:02:00]} 37. Qf6+ {[%emt 0:03:06]} Ke8 {[%emt 0:00:31]} 38. Kb1 {[%emt 0:04:08]} Be4 {[%emt 0:01:17]} 39. Bxe4 {[%emt 0:01:08]} Qxe4+ {[%emt 0:00:03]} 40. Ka2 {[%emt 0:00:56]} Qxf4 {[%emt 0:01:07]} 41. Qh8+ {[%emt 0:30:21]} Kd7 {[%emt 0:30:02]} 42. g6 {[%emt 0:00:08]} Be5 {[%emt 0:00:08]} 43. Qh7 {[%emt 0:00:25]} Qd2+ {[%emt 0:00:04]} 0-1

[Event "Panevezys Elite Open 2020"]
[Site "Panevezys"]
[Date "2020.07.02"]
[Round "8.10"]
[White "Povilaitis, Tomas"]
[Black "Steponavicius, Stasys"]
[Result "0-1"]
[ECO "B34"]
[WhiteElo "1832"]
[BlackElo "2183"]
[Annotator "ChessBase"]
[PlyCount "56"]
[EventDate "2020.06.26"]
[EventType "swiss"]
[EventCountry "LTU"]
[SourceTitle "playchess.com"]
[Source "ChessBase"]
[SourceQuality "1"]
[TimeControl "40/5400+30:1800+30"]

1. e4 {[%emt 0:00:00]} c5 {[%emt 0:00:00]} 2. Nf3 {[%emt 0:00:00]} Nc6 {[%emt 0:00:00]} 3. d4 {[%emt 0:00:00]} cxd4 {[%emt 0:00:00]} 4. Nxd4 {[%emt 0:00:01]} Nf6 {[%emt 0:00:02]} 5. Nc3 {[%emt 0:00:13]} e5 {[%emt 0:00:10]} 6. Nde2 {[%emt 0:00:15]} Bc5 {[%emt 0:00:34]} 7. Ng3 {[%emt 0:00:27]} Qb6 {[%emt 0:03:41]} 8. Qd2 Bb4 9. Qg5 {[%emt 0:07:24]} Rg8 {[%emt 0:15:35]} 10. Bd3 {[%emt 0:09:07]} h6 {[%emt 0:00:57]} 11. Qh4 {[%emt 0:05:39]} Nd4 {[%emt 0:04:08]} 12. O-O {[%emt 0:02:15]} g5 {[%emt 0:01:28]} 13. Qxh6 {[%emt 0:05:50]} Bf8 {[%emt 0:00:19]} 14. Qh3 {[%emt 0:00:31]} d5 {[%emt 0:00:29]} 15. Nf5 {[%emt 0:12:53]} dxe4 {[%emt 0:01:13]} 16. Qg3 {[%emt 0:08:33]} Bxf5 {[%emt 0:03:37]} 17. Qxe5+ {[%emt 0:00:37]} Be6 {[%emt 0:02:03]} 18. Be3 {[%emt 0:21:30]} O-O-O {[%emt 0:03:07]} 19. Nxe4 {[%emt 0:00:48]} Ng4 {[%emt 0:01:19]} 20. Qg3 {[%emt 0:01:18]} Nxe3 {[%emt 0:02:55]} 21. Qxe3 {[%emt 0:00:50]} Be7 {[%emt 0:00:52]} 22. a4 {[%emt 0:00:11]} Nf5 {[%emt 0:00:42]} 23. Qe2 {[%emt 0:00:10]} g4 {[%emt 0:03:38]} 24. a5 {[%emt 0:00:28]} Qc7 {[%emt 0:00:09]} 25. Rfb1 {[%emt 0:01:54]} Rh8 {[%emt 0:00:27]} 26. Ng3 {[%emt 0:00:07]} Nxg3 {[%emt 0:01:02]} 27. hxg3 {[%emt 0:00:06]} Bc5 {[%emt 0:01:12]} 28. b4 {[%emt 0:00:56]} Qxg3 {[%emt 0:02:40]} 0-1

[Event "Panevezys Elite Open 2020"]
[Site "Panevezys"]
[Date "2020.07.02"]
[Round "8.11"]
[White "Jablokov, Dmitrij"]
[Black "Aleknavicius, Andrius"]
[Result "1-0"]
[ECO "A04"]
[WhiteElo "1962"]
[BlackElo "1895"]
[Annotator "ChessBase"]
[PlyCount "45"]
[EventDate "2020.06.26"]
[EventType "swiss"]
[EventCountry "LTU"]
[SourceTitle "playchess.com"]
[Source "ChessBase"]
[SourceQuality "1"]
[TimeControl "40/5400+30:1800+30"]

1. Nf3 {[%emt 0:00:00]} f5 {[%emt 0:00:50]} 2. d3 {[%emt 0:00:00]} Nf6 {[%emt 0:01:27]} 3. e4 {[%emt 0:00:00]} d6 {[%emt 0:03:09]} 4. exf5 {[%emt 0:01:47]} Bxf5 {[%emt 0:00:29]} 5. d4 {[%emt 0:00:07]} g6 {[%emt 0:01:57]} 6. Bd3 {[%emt 0:03:40]} Qd7 {[%emt 0:10:58]} 7. O-O {[%emt 0:04:10]} Bg7 {[%emt 0:02:36]} 8. Re1 {[%emt 0:05:00]} O-O {[%emt 0:18:54]} 9. Bxf5 {[%emt 0:01:17]} Qxf5 {[%emt 0:01:24]} 10. Rxe7 {[%emt 0:01:04]} Ne4 {[%emt 0:09:16]} 11. Nc3 {[%emt 0:01:26]} d5 {[%emt 0:01:53]} 12. Be3 {[%emt 0:04:41]} Na6 {[%emt 0:25:13]} 13. Nxe4 {[%emt 0:01:43]} dxe4 {[%emt 0:00:20]} 14. Nd2 {[%emt 0:00:04]} Rae8 {[%emt 0:01:54]} 15. Rxe8 {[%emt 0:00:06]} Rxe8 {[%emt 0:00:03]} 16. c3 {[%emt 0:00:35]} Kh8 {[%emt 0:04:01]} 17. Qa4 {[%emt 0:02:15]} Rf8 {[%emt 0:00:32]} 18. Qc2 {[%emt 0:00:07]} Re8 {[%emt 0:01:37]} 19. Re1 {[%emt 0:00:25]} Qd5 {[%emt 0:02:44]} 20. Qb3 {[%emt 0:00:22]} Qd6 {[%emt 0:02:45]} 21. Qxb7 {[%emt 0:00:44]} Rb8 {[%emt 0:00:20]} 22. Qxe4 {[%emt 0:00:02]} c5 {[%emt 0:01:29]} 23. Bf4 {[%emt 0:00:05]} 1-0

[Event "Panevezys Elite Open 2020"]
[Site "Panevezys"]
[Date "2020.07.02"]
[Round "8.12"]
[White "Boyajyan, David"]
[Black "Butvilas, Aistis"]
[Result "1/2-1/2"]
[ECO "A13"]
[WhiteElo "1949"]
[BlackElo "2103"]
[Annotator "ChessBase"]
[PlyCount "59"]
[EventDate "2020.06.26"]
[EventType "swiss"]
[EventCountry "LTU"]
[SourceTitle "playchess.com"]
[Source "ChessBase"]
[SourceQuality "1"]
[TimeControl "40/5400+30:1800+30"]

1. Nf3 {[%emt 0:00:00]} Nf6 {[%emt 0:00:00]} 2. g3 {[%emt 0:00:00]} d5 {[%emt 0:00:00]} 3. c4 {[%emt 0:00:00]} e6 {[%emt 0:01:21]} 4. Bg2 {[%emt 0:00:00]} b6 {[%emt 0:01:05]} 5. O-O {[%emt 0:00:26]} Be7 {[%emt 0:00:44]} 6. b3 {[%emt 0:00:14]} O-O {[%emt 0:00:31]} 7. Bb2 {[%emt 0:00:03]} Bb7 {[%emt 0:00:18]} 8. d3 {[%emt 0:00:52]} Re8 {[%emt 0:01:49]} 9. Nbd2 {[%emt 0:01:04]} Nbd7 {[%emt 0:04:46]} 10. Qc2 {[%emt 0:03:57]} c5 {[%emt 0:04:06]} 11. e4 {[%emt 0:03:06]} Nf8 {[%emt 0:20:28]} 12. cxd5 {[%emt 0:19:22]} exd5 {[%emt 0:00:08]} 13. e5 {[%emt 0:00:11]} N6d7 {[%emt 0:00:53]} 14. Ne1 {[%emt 0:00:24]} f6 {[%emt 0:01:41]} 15. f4 {[%emt 0:07:50]} fxe5 {[%emt 0:00:49]} 16. fxe5 {[%emt 0:00:07]} Qc7 {[%emt 0:21:10]} 17. d4 {[%emt 0:07:46]} Ne6 {[%emt 0:08:00]} 18. Qf5 {[%emt 0:07:32]} Bg5 {[%emt 0:02:34]} 19. Qf7+ {[%emt 0:02:25]} Kh8 {[%emt 0:00:11]} 20. Ndf3 {[%emt 0:06:22]} Be3+ {[%emt 0:02:37]} 21. Kh1 {[%emt 0:00:08]} cxd4 {[%emt 0:02:07]} 22. Bh3 {[%emt 0:02:02]} Ndc5 {[%emt 0:10:47]} 23. Qxc7 {[%emt 0:03:54]} Nxc7 {[%emt 0:00:03]} 24. Nxd4 {[%emt 0:00:44]} N7e6 {[%emt 0:03:21]} 25. Nxe6 {[%emt 0:03:55]} d4+ {[%emt 0:01:28]} 26. Bg2 {[%emt 0:01:33]} Bxg2+ {[%emt 0:05:43]} 27. Nxg2 {[%emt 0:00:15]} Rxe6 {[%emt 0:00:32]} 28. Nxe3 {[%emt 0:01:51]} dxe3 {[%emt 0:00:02]} 29. Bd4 {[%emt 0:00:20]} Nd3 {[%emt 0:02:42]} 30. Bxe3 {[%emt 0:04:45]} 1/2-1/2